Cogmind - Beta 11.2 @@@ ROGUE MODE // 2023.03.02 @ 22:57:27 Player: Lord Zigzarog Result: Destroyed by Y-45 Defender with Heavy Assault Rifle Performance ------------- Evolutions (1) 500 Regions Visited (3) 600 Robots Destroyed (32) 160 Value Destroyed (806) 806 Prototype IDs (3) 60 Alien Tech Used (0) 0 Bonus (0) 0 TOTAL SCORE: 2126 Bonus ------- None Cogmind --------- Core Integrity 0/400 Matter 300/300 Energy 100/100 System Corruption 0% Temperature Cool (9) Movement Walking (120) Location -9/Materials Parts ------- > --- POWER (1) -------- (None) > --- PROPULSION (3) --- Aluminum Leg Aluminum Leg > --- UTILITY (3) ------ Medium Storage Unit Utility Shielding > --- WEAPON (2) ------- Ripper > --- INVENTORY (10) --- Shield Generator EM Pulse Gun Beam Cannon Assault Rifle Peak State ------------ > --- POWER ------------ Light Nuclear Core > --- PROPULSION ------- Aluminum Leg Aluminum Leg Aluminum Leg > --- UTILITY ---------- Medium Storage Unit Utility Shielding Light Armor Plating > --- WEAPON ----------- Heavy Assault Rifle Ripper > --- INVENTORY -------- EM Pulse Gun Beam Cannon Assault Rifle [Rating: 15] Favorites ----------- Power Light Nuclear Core Engine Ion Engine Power Core Light Nuclear Core Propulsion Aluminum Leg Leg Aluminum Leg Wheel Wheel Utility Medium Storage Unit Storage Medium Storage Unit Processor Transport Network Coupler Protection Light Armor Plating Weapon Grenade Launcher Energy Gun EM Pulse Gun Energy Cannon Beam Cannon Ballistic Gun Assault Rifle Launcher Grenade Launcher Impact Weapon Hammer Slashing Weapon Ripper Build | -11 -10 -10 -9 ------- Run | Scr Mat Min Mat Slots Evolved 2 | . . . 2 Power . | . . . . Propulsion 1 | . . . 1 Utility 1 | . . . 1 Weapon . | . . . . Parts Attached 37 | 6 12 4 15 Power 5 | 1 2 . 2 Engine 3 | 1 1 . 1 Core 2 | . 1 . 1 Reactor . | . . . . Propulsion 15 | 2 3 2 8 Treads . | . . . . Leg 12 | . 2 2 8 Wheel 3 | 2 1 . . Hover . | . . . . Flight . | . . . . Utility 6 | 1 2 1 2 Device . | . . . . Storage 2 | 1 1 . . Processor 1 | . 1 . . Hackware . | . . . . Protection 3 | . . 1 2 Artifact . | . . . . Weapon 11 | 2 5 1 3 Energy Gun 1 | 1 . . . Energy Cannon 2 | . 2 . . Ballistic Gun 3 | 1 . . 2 Ballistic Cannon . | . . . . Launcher 3 | . 2 . 1 Special Weapon . | . . . . Impact Weapon 1 | . 1 . . Slashing Weapon 1 | . . 1 . Piercing Weapon . | . . . . Special Melee Weapon . | . . . . Unidentified Prototypes . | . . . . Parts Lost 16 | . 4 . 12 Power 5 | . 2 . 3 Propulsion 6 | . 1 . 5 Utility 2 | . . . 2 Weapon 3 | . 1 . 2 Highest Loss Streak 6 | . 4 . 6 To Critical Strikes . | . . . . Average Slot Usage (%) 94 | . 96 100 86 Engine 5 | . 9 . 2 Core 5 | . 2 14 7 Leg 17 | . 8 28 28 Wheel 10 | . 18 . . Storage 13 | . 14 14 11 Processor 8 | . 12 5 . Protection 6 | . . 8 18 Energy Cannon 2 | . 4 . . Ballistic Gun 2 | . 3 . 4 Launcher 8 | . 8 14 3 Impact Weapon 7 | . 10 9 . Slashing Weapon 3 | . . 4 11 Naked Turns . | . . . . Heaviest Build 27 | 14 20 24 27 Greatest Support 33 | 20 26 20 33 Greatest Overweight (x) 4 | . 1 1 4 Average Overweight (x) . | . . . . Largest Inventory Capacity 10 | 8 10 10 10 Average Capacity 9 | 7 9 10 10 Most Carried 8 | 2 6 8 6 Average Carried 3 | . 2 5 4 Final Capacity 10 | 8 10 10 10 Final Carried 7 | . 3 7 4 Class Distribution -------------------- 55% | Scavenger-Mutant 44% | Mutant Dominant Class ---------------- Mutant | -10/Materials Scavenger-Mutant | -10/Mines Scavenger-Mutant | -9/Materials Resources | -11 -10 -10 -9 ----------- Run | Scr Mat Min Mat Matter Collected 715 | 206 200 130 179 Remotely . | . . . . Salvage Created 1069 | . 341 76 652 Parts 71 | . 21 6 44 Haulers Intercepted 2 | . 2 . . Recyclers Shooed . | . . . . Parts Field Recycled . | . . . . Retrieved Matter . | . . . . Parts Self-Destructed . | . . . . Prevented . | . . . . Kills | -11 -10 -10 -9 ------- Run | Scr Mat Min Mat Combat Hostiles Destroyed 26 | . 9 2 15 Melee 14 | . 3 1 10 Guns 4 | . 2 . 2 Cannons 4 | . 4 . . AOE 4 | . . 1 3 Classes Destroyed 8 | . 5 . 3 Worker 1 | . 1 . . Hauler 2 | . 2 . . Recycler 1 | . . . 1 Watcher 2 | . 1 . 1 Swarmer 9 | . 6 . 3 Grunt 12 | . 3 2 7 Duelist 2 | . . . 2 Sentry 3 | . . . 3 Best Kill Streak 6 | . 3 2 6 Combat Bots Only 6 | . 3 2 6 Max Kills in Single Turn 2 | . 1 1 2 Gunslinging . | . . . . Exploded 2 | . . 1 2 Melee 1 | . 1 1 1 Uniques/NPCs Destroyed . | . . . . Combat | -11 -10 -10 -9 -------- Run | Scr Mat Min Mat Damage Taken 2088 | . 592 87 1409 Core 606 | . 191 12 403 Absorbed by Shields . | . . . . Redirected to Shielding 26 | . . . 26 Regen/Repaired (Parts) 38 | . . . 38 Core Remaining (%) 59 | 100 . 18 . Volleys Fired 50 | . 34 4 12 Largest 2 | . 2 1 1 Hottest 80 | . 80 30 30 Shots Fired 64 | . 48 4 12 Gun 24 | . 15 . 9 Cannon 26 | . 26 . . Launcher 14 | . 7 4 3 Special . | . . . . Kinetic 23 | . 14 . 9 Thermal 26 | . 26 . . Explosive 14 | . 7 4 3 Electromagnetic 1 | . 1 . . Robot Hit Streak 9 | . 7 2 9 Robot Miss Streak 2 | . 2 1 1 Penetration Max . | . . . . Secondary Targets . | . . . . Shots Hit Robots 94 | . 47 4 43 Core Hits 39 | . 16 4 19 Critical Kills 2 | . 1 1 . Critical Parts Destroyed . | . . . . Critical Strikes 5 | . 1 1 3 Smash 2 | . 1 1 . Sever 3 | . . . 3 Melee Attacks 75 | . 32 3 40 Impact 35 | . 32 3 . Slashing 40 | . . . 40 Piercing . | . . . . Sneak Attacks 2 | . 1 . 1 Combat Hostiles . | . . . . Follow-up Attacks . | . . . . Damage Inflicted 2543 | . 1015 134 1394 Guns 207 | . 88 . 119 Cannons 334 | . 334 . . Explosions 273 | . 56 80 137 Melee 1727 | . 535 54 1138 Ramming 2 | . 2 . . Kinetic 207 | . 88 . 119 Thermal 334 | . 334 . . Explosive 273 | . 56 80 137 Electromagnetic . | . . . . Impact 589 | . 535 54 . Slashing 1138 | . . . 1138 Piercing . | . . . . Highest Corruption . | . . . . Average Corruption . | . . . . Corruption Purged . | . . . . Corruption Blocked . | . . . . Overload Shots . | . . . . Overflow Damage 32 | . 8 . 24 Projectiles . | . . . . Explosions . | . . . . Melee 32 | . 8 . 24 Knockbacks 2 | . 2 . . Impact 2 | . 2 . . Kinetic . | . . . . Secondary . | . . . . Self-Inflicted Damage 89 | . 19 32 38 Shots 3 | . 1 1 1 Rammed . | . . . . Targets Rammed 1 | . 1 . . Kicked 1 | . 1 . . Crushed . | . . . . Highest Temperature 160 | . 160 11 20 Average Temperature 42 | . 46 7 6 Received Heat Transfer 834 | . 252 48 534 Siege Activations . | . . . . Robots Corrupted . | . . . . Combat Hostiles . | . . . . Parts Fried . | . . . . Impact Corruptions 1 | . 1 . . Robots Melted . | . . . . Combat Hostiles . | . . . . Parts Melted . | . . . . Heat Transferred 703 | . 703 . . Parts Sabotaged . | . . . . Parts Stolen . | . . . . Parts Stripped . | . . . . Power Chain Reactions . | . . . . Missiles Intercepted . | . . . . Alert | -11 -10 -10 -9 ------- Run | Scr Mat Min Mat Peak Influence 388 | . 207 160 388 Initial 62 | . . 5 62 Average 135 | . 98 140 231 Maximum Alert Level 1 | . 1 . 1 Low Security (%) 79 | 100 96 100 25 Level 1 20 | . 3 . 74 Level 2 . | . . . . Level 3 . | . . . . Level 4 . | . . . . Level 5 . | . . . . High Security . | . . . . Max Security . | . . . . Squads Dispatched . | . . . . Investigation . | . . . . Extermination . | . . . . Reinforcement . | . . . . Assault . | . . . . Garrison . | . . . . Intercept . | . . . . Searches Triggered . | . . . . Construction Impeded . | . . . . Haulers Reinforced . | . . . . Active Scanning Responses . | . . . . Cargo Convoy Interrupts . | . . . . Stealth | -11 -10 -10 -9 --------- Run | Scr Mat Min Mat Distress Signals 5 | . 1 . 4 Communications Jammed . | . . . . Distress Signals . | . . . . Times Spotted 45 | . 19 3 23 Peak Tracking Total 7 | . 4 2 7 Tactical Retreats 1 | . 1 . . Traps | -11 -10 -10 -9 ------- Run | Scr Mat Min Mat Traps Triggered 2 | . 1 . 1 Indirectly . | . . . . Trap Hack Attempts . | . . . . Triggered . | . . . . Disarmed . | . . . . Reprogrammed . | . . . . Reused . | . . . . Traps Extracted . | . . . . Installed . | . . . . Triggered . | . . . . Machines | -11 -10 -10 -9 ---------- Run | Scr Mat Min Mat Machines Disabled 1 | . . . 1 Max in Single Turn 1 | . . . 1 Machines Sabotaged . | . . . . Garrisons Compromised . | . . . . Overloaded Fab Kills . | . . . . Hacking | -11 -10 -10 -9 --------- Run | Scr Mat Min Mat Machines Accessed 15 | . 11 . 4 Terminals 10 | . 8 . 2 Fabricators . | . . . . Repair Stations 2 | . 1 . 1 Recycling Units 3 | . 2 . 1 Scanalyzers . | . . . . Garrison Access . | . . . . Total Hacks 50 | . 36 . 14 Successful 30 | . 21 . 9 Failed 20 | . 15 . 5 Catastrophic 2 | . 2 . . Database Lockouts . | . . . . Manual . | . . . . Terminals 35 | . 26 . 9 Fabricators . | . . . . Repair Stations 5 | . 3 . 2 Recycling Units 10 | . 7 . 3 Scanalyzers . | . . . . Garrison Access . | . . . . Terminal Hacks 21 | . 16 . 5 Record 3 | . 3 . . Prototype ID Bank 2 | . . . 2 Branch Access Points 1 | . 1 . . Emergency Access Points 2 | . . . 2 Scanalyzer Index 1 | . . . 1 Unreport Threat 1 | . 1 . . Locate Traps 1 | . 1 . . Dispatch Records 2 | . 2 . . Maintenance Status 1 | . 1 . . Surveillance Status 1 | . 1 . . Patrol Status 1 | . 1 . . Hauler Manifests 2 | . 2 . . Registered Components 1 | . 1 . . Registered Prototypes 1 | . 1 . . Zone Layout 1 | . 1 . . Fabricator Hacks . | . . . . Repair Station Hacks 3 | . 1 . 2 Scan Component 2 | . 1 . 1 Repair 1 | . . . 1 Recycling Unit Hacks 6 | . 4 . 2 Recycle Component 1 | . 1 . . Process 2 | . 1 . 1 Report Inventory 1 | . 1 . . Retrieve Components 2 | . 1 . 1 Scanalyzer . | . . . . Garrison Access Hacks . | . . . . Unauthorized Hacks . | . . . . Terminals . | . . . . Fabricators . | . . . . Repair Stations . | . . . . Recycling Units . | . . . . Scanalyzers . | . . . . Garrison Access . | . . . . Data Cores Recovered . | . . . . Used . | . . . . Hacking Detections 14 | . 10 . 4 Full Trace Events 2 | . 1 . 1 Feedback Events . | . . . . Feedback Blocked . | . . . . Robot Schematics Acquired . | . . . . Robots Built . | . . . . Authchips . | . . . . Time . | . . . . Total Robot Build Rating . | . . . . Part Schematics Acquired . | . . . . Parts Built . | . . . . Authchips . | . . . . Time . | . . . . Total Part Build Rating . | . . . . Parts Repaired 1 | . . . 1 Time 13 | . . . 13 Parts Recycled 1 | . 1 . . Recycled Matter 104 | . 104 . . Retrieved Matter . | . . . . Retrieved Components 10 | . 10 . . Parts Scanalyzed . | . . . . Part Schematics Acquired . | . . . . Parts Damaged . | . . . . Bothacking | -11 -10 -10 -9 ------------ Run | Scr Mat Min Mat Used RIF Installer . | . . . . Robots Hacked . | . . . . Non-combat . | . . . . Combat . | . . . . Robot Hacks Applied . | . . . . Relay Couplers Released . | . . . . Fabnet Peak Effective % . | . . . . Robots Rewired . | . . . . Allies Hacked . | . . . . Hacks Repelled . | . . . . Allies | -11 -10 -10 -9 -------- Run | Scr Mat Min Mat Total Allies . | . . . . Largest Group . | . . . . Highest-Rated Group . | . . . . Highest-Rated Ally . | . . . . Total Orders . | . . . . Ally Attacks . | . . . . Total Damage . | . . . . Kills . | . . . . Allies Corrupted . | . . . . Allies Melted . | . . . . Intel | -11 -10 -10 -9 ------- Run | Scr Mat Min Mat Robot Analysis Total . | . . . . Derelict Logs Recovered . | . . . . Drone Launches . | . . . . Drone Recoveries . | . . . . Exploration | -11 -10 -10 -9 ------------- Run | Scr Mat Min Mat Turns Passed 2246 | 62 1248 384 552 Spaces Moved 1405 | 60 926 211 208 Core 7 | 6 . . 1 Treads . | . . . . Legs 727 | . 309 211 207 Wheels 671 | 54 617 . . Hover . | . . . . Flight . | . . . . Fastest Speed 50 | 50 80 120 120 Average Speed 109 | 77 96 154 129 Slowest Speed 260 | 80 120 190 260 Overloaded Moves . | . . . . Propulsion Burnouts . | . . . . Robots Hopped . | . . . . Cave-ins Triggered . | . . . . Exploration Rate (%) 40 | 4 100 41 16 Regions Visited 3 Branch Regions 1 Pre-discovered Areas . | . . . . Known Exits Taken 1 | . 1 . . Unknown Exits Taken 2 | 1 . 1 . Scrap Searched . | . . . . Spaces Dug . | . . . . Terrain Destroyed 97 | . 43 36 18 Melee . | . . . . Projectile . | . . . . AOE 97 | . 43 36 18 Terrain Rammed . | . . . . Walls Destroyed . | . . . . Machines Disabled . | . . . . Actions | -11 -10 -10 -9 --------- Run | Scr Mat Min Mat Total 1928 | 75 1177 258 418 Wait 326 | 4 160 30 132 Move 1402 | 59 925 210 208 Hop . | . . . . Pick Up 34 | 6 11 6 11 Fast Attach . | . . . . Attach 25 | 6 5 . 14 Detach . | . . . . Swap 12 | . 7 4 1 Drop 3 | . 2 1 . Fire 50 | . 34 4 12 Melee 75 | . 32 3 40 Ram . | . . . . Kick 1 | . 1 . . Crush . | . . . . Escape Stasis . | . . . . Rewire . | . . . . Trap . | . . . . Miscellaneous . | . . . . Route ------- -11/Scrapyard -10/Materials (discovered 4 exits: *Mat x3 / *Min) -10/Mines -9/Materials History --------- Turn | Location | Event 21 | -11/Scrapyard | Discovered new exit (range 16) 63 | -11/Scrapyard | Entered Materials 87 | -10/Materials | Identified exit to Mines 305 | -10/Materials | Build established: Mutant 452 | -10/Materials | Discovered new exit (range 13) 890 | -10/Materials | Core integrity fell below 50% 938 | -10/Materials | Lost 4 parts (2p1n1w) 1026 | -10/Materials | Discovered new exit (range 14) 1188 | -10/Materials | Discovered new exit (range 11) 1214 | -10/Materials | Build established: Scavenger-Mutant 1311 | -10/Materials | Entered Mines 1343 | -10/Mines | Core integrity fell below 20% 1462 | -10/Mines | Joined a pair of Derelicts in attacking an 0b10 outpost 1567 | -10/Mines | A weapon hastily lodged in a ceiling crevice suddenly fell to the ground 1618 | -10/Mines | Discovered new exit (range 11) 1624 | -10/Mines | Assembled infested the area 1629 | -10/Mines | Assisted by a Guerilla fighting off Assembled 1695 | -10/Mines | Entered Materials 1695 | -9/Materials | Evolved 2 slots: Propulsion x1, Utility x1 1722 | -9/Materials | Repaired Grenade Launcher 1914 | -9/Materials | Lost 3 parts (1p1u1w) 2108 | -9/Materials | Core integrity fell below 50% 2122 | -9/Materials | Core integrity fell below 20% 2158 | -9/Materials | Lost 6 parts (1p3n1u1w) 2247 | -9/Materials | Destroyed by Y-45 Defender with Heavy Assault Rifle Last Messages --------------- Acquired Aluminum Leg. K-01 Serf collects debris. K-01 Serf destroyed. K-01 Serf collects debris. G-34 Mercenary Aluminum Leg severed. K-01 Serf collects debris. G-34 Mercenary destroyed. K-01 Serf collects debris. R-06 Scavenger collects Imp. Aluminum Leg. Acquired 20 matter. K-01 Serf collects debris. Aluminum Leg destroyed. G-34 Mercenary destroyed. W-16 Scout sends out distress signal. G-34 Mercenary destroyed. K-01 Serf collects debris. K-01 Serf cleans the Electrolysis Chamber. Destroyed Lgt. Ion Engine. Ion Engine destroyed. W-16 Scout destroyed. Map ----- +----------------------------------------------------+ | ?????????????????????????????????????????????????? | | ?????????????????????????????????????????????????? | | ?????????????????????????????????????????????????? | | ?????????????????????????????????????????????????? | | ?????????????????????????????????????????????????? | | ?????????????????????????????????????????????????? | | ?????????????????????????????????????????????????? | | ?????????????????????????????????????????????????? | | ?????????????????????????????????????????????????? | | ?????????????????????????????????????????????????? | | ???????????????????????? ??????????????????????? | | ???????????????????????? ??????????????????????? | | ??????????????? ""?????? ??????????????????????? | | ?????????????? ???? ??????????????????????? | | ?????????????# ???? ??????????????????????? | | ?????????????# ???? ??????????????????????? | | ?????? ??????# ????? ??????????????????????? | | ?????? ??????? ????? ??????????????????????? | | ?????? ??#???? ????? #??????????????????????? | | ?????? ## #?### #?????#g#??????????????????????? | | ?????? # ! # #?????#Y#??????????????????????? | | ?????? # / #?????# #??????????????????????? | | ?????? + " # #?????# #??????????????????????? | | ####?# # """ # #?????#!#??????????????????????? | | #?# # """ # #?????#%#??????????????????????? | | #?# # """ # ##+####@#??????????????????????? | | [#?# # " # ## #??????????????????????? | | ### # " + ^ ##/######?????????????????? | | ## # # #kk* #?????????????????? | | ### # ###### !#k""" #?????????????????? | | +##### # # #??# % #!""" #?????????????????? | | "T" + # #??# / """ #?????????????????? | | # [ # #??#^ # #?????????????????? | | [ ###+#########^ #####+###?????????????????? | | ### ##????# % #?# #???????????????????? | | #?#+###???#% #?# #???????????????????? | | [= #?# ##??# ! [ #?# #???????????????????? | | =""" #?# #??#! =%! #?# #???????????????????? | | """ ### #??# %= #?# #???????????????????? | | """ # #??# %*! #?# #???????????????????? | | + #??# #?# #???????????????????? | | # #??## * !##?# #???????????????????? | | ####### # #???# %!%#### ###?????????????????? | | ??????# # #???# %[![% #?????????????????? | | ####### # #???# [==!% #?????????????????? | | # ######???# * #?????????????????? | | # #????????# #?????????????????? | | # ##???????# #?????????????????? | | # #???????######## #?????????????????? | | "" + #??????????????# ????????????????? | +----------------------------------------------------+ Best States ------------- Heat Dissipation 28 Energy Generation 14 Energy Capacity 250 Matter Stores 300 Matter Capacity 300 Sight Range 16 Terrain Scan Density 10 Armor Coverage 300 Utility Shielding 33 Evasion (%) 55 Item Schematics ----------------- None Robot Schematics ------------------ None Fabricated ------------ Nothing Alien Tech Used ----------------- None Achievements -------------- None Challenges ------------ None Game ------ Seed ProcessingPointCompressor Manual? 0 Play Time 00:43:37 Cumulative 8.1 hours Start 2023.03.02 @ 22:15:46 End 2023.03.02 @ 22:57:27 Sessions 1 Manual Loads 0 Difficulty Rogue Special Mode None Game No. 9 Rogue 8 Adventurer 1 Explorer 0 Win Type - Total 0 Types 0/0/0/0/0/0/0/0/0 Lore% 7 Gallery% 9 Achievement% 12 Wizard Run 0 Options --------- ASCII 0 Keyboard 0 Movement Mouse Keybinds 0 Fullscreen 1 Font 18/X11Bold Map View 76x50 Tactical HUD 0 Map Filters NONE Filters NONE Steam 1 RUN: ca99c266-0de4-4c1f-ba19-84eeb61dfb36